fUST/lending_fUST_20250521
["ID","MTS","AMOUNT","RATE_DAILY","PERIOD"]
[361753235,1747759832693,-198.03,0.00016712,2]
[361753236,1747759832705,-317.12,0.00016712,2]
[361753237,1747759832715,-430.0,0.00016712,2]
[361753238,1747759832724,-430.0,0.00016712,2]
[361753239,1747759832735,-430.0,0.00016712,2]
[361753240,1747759832745,-914.91,0.00016712,2]
[361753241,1747759832755,-430.0,0.00016712,2]
[361753242,1747759832764,-430.0,0.00016712,2]
[361753243,1747759832774,-430.0,0.00016712,2]
[361753244,1747759832783,-237.54,0.00016712,2]
[361753245,1747759832792,-1334.72,0.00016712,2]
[361753246,1747759832801,-450.0,0.00016712,2]
[361753247,1747759832811,-430.0,0.00016712,2]
[361753248,1747759832822,-533.26,0.00016712,2]
[361753249,1747759832831,-430.0,0.00016712,2]
[361753250,1747759832842,-430.0,0.00016712,2]
[361753251,1747759832851,-308.72,0.00016712,2]
[361753252,1747759832860,-430.0,0.00016712,2]
[361753253,1747759832873,-430.0,0.00016712,2]
[361753254,1747759832882,-430.0,0.00016712,2]
[361753255,1747759832893,-633.91,0.00016712,2]
[361753256,1747759832903,-430.0,0.00016712,2]
[361753257,1747759832914,-452.11,0.00016712,2]
[361753258,1747759832923,-430.0,0.00016712,2]
[361753259,1747759832932,-430.0,0.00016712,2]
[361753260,1747759832942,-430.0,0.00016712,2]
[361753261,1747759832952,-430.0,0.00016712,2]
[361753262,1747759832963,-1477.87550295,0.000169,2]
[361753263,1747759832973,-420.0,0.00016983,2]
[361753264,1747759832983,-300.0,0.00016983,2]
[361753265,1747759832992,-420.0,0.00016983,2]
[361753266,1747759833002,-430.0,0.00016986,2]
[361753267,1747759833012,-430.0,0.00016986,2]
[361753268,1747759833023,-430.0,0.00016986,2]
[361753269,1747759833038,-515.3,0.00016986,2]
[361753270,1747759833048,-259.0,0.00016986,2]
[361753271,1747759833058,-213.99,0.00016986,2]
[361753272,1747759833068,-914.91,0.00016986,2]
[361753273,1747759833078,-548.16,0.00016986,2]
[361753274,1747759833088,-388.03153098,0.00016986,2]
[361753275,1747759833098,-430.0,0.00016986,2]
[361753276,1747759833110,-1334.72,0.00016986,2]
[361753277,1747759833119,-430.0,0.00016986,2]
[361753278,1747759833130,-533.26,0.00016986,2]
[361753279,1747759833139,-430.0,0.00016986,2]
[361753280,1747759833149,-430.0,0.00016986,2]
[361753281,1747759833158,-430.0,0.00016986,2]
[361753282,1747759833167,-430.0,0.00016986,2]
[361753283,1747759833176,-430.0,0.00016986,2]
[361753284,1747759833187,-633.91,0.00016986,2]
[361753285,1747759833196,-430.0,0.00016986,2]
[361753286,1747759833206,-452.11,0.00016986,2]
[361753287,1747759833215,-430.0,0.00016986,2]
[361753288,1747759833225,-438.85,0.00016986,2]
[361753289,1747759833235,-430.0,0.00016986,2]
[361753290,1747759833244,-430.0,0.00016986,2]
[361753291,1747759833253,-3047.71119738,0.00017,2]
[361753292,1747759833263,-169.24670107,0.0001716,2]
[361753293,1747759833272,-1477.87550295,0.0001721,2]
[361753294,1747759833282,-190.92456816,0.0001726,2]
[361753295,1747759833298,-180.0,0.0001726,2]
[361753296,1747759833311,-425.01,0.0001726,2]
[361753297,1747759833321,-914.91,0.0001726,2]
[361753298,1747759833331,-430.0,0.0001726,2]
[361753299,1747759833341,-1334.72,0.0001726,2]
[361753300,1747759833350,-476.76608057,0.0001726,2]
[361753301,1747759833360,-533.26,0.0001726,2]
[361753302,1747759833370,-430.0,0.0001726,2]
[361753303,1747759833381,-430.0,0.0001726,2]
[361753304,1747759833391,-217.87,0.0001726,2]
[361753305,1747759833402,-430.0,0.0001726,2]
[361753306,1747759833412,-430.0,0.0001726,2]
[361753307,1747759833422,-633.91,0.0001726,2]
[361753308,1747759833431,-430.0,0.0001726,2]
[361753309,1747759833441,-452.11,0.0001726,2]
[361753310,1747759833451,-430.0,0.0001726,2]
[361753311,1747759833460,-430.0,0.0001726,2]
[361753312,1747759833470,-430.0,0.0001726,2]
[361753313,1747759833480,-500.0,0.00017273,2]
[361753314,1747759833489,-500.0,0.00017392,2]
[361753315,1747759833499,-500.0,0.00017476,2]
[361753316,1747759833508,-500.0,0.00017476,2]
[361753317,1747759833518,-1477.87550295,0.00017521,2]
[361753318,1747759833527,-914.91,0.00017534,2]
[361753319,1747759833537,-430.0,0.00017534,2]
[361753320,1747759833547,-1334.72,0.00017534,2]
[361753321,1747759833557,-533.26,0.00017534,2]
[361753322,1747759833569,-430.0,0.00017534,2]
[361753323,1747759833578,-430.0,0.00017534,2]
[361753324,1747759833589,-430.0,0.00017534,2]
[361753325,1747759833599,-430.0,0.00017534,2]
[361753326,1747759833608,-633.91,0.00017534,2]
[361753327,1747759833618,-430.0,0.00017534,2]
[361753328,1747759833629,-452.11,0.00017534,2]
[361753329,1747759833639,-430.0,0.00017534,2]
[361753330,1747759833649,-430.0,0.00017534,2]
[361753331,1747759833658,-430.0,0.00017534,2]
[361753332,1747759833668,-160.0,0.00017591,2]
[361753333,1747759833678,-160.0,0.00017591,2]
[361753334,1747759833688,-4372.6092802,0.00017591,2]
[361753335,1747759833698,-894.64583333,0.00017591,2]
[361753336,1747759833708,-914.91,0.00017808,2]
[361753337,1747759833718,-430.0,0.00017808,2]
[361753338,1747759833728,-1334.72,0.00017808,2]
[361753339,1747759833738,-533.26,0.00017808,2]
[361753340,1747759833747,-430.0,0.00017808,2]
[361753341,1747759833757,-430.0,0.00017808,2]
[361753342,1747759833767,-430.0,0.00017808,2]
[361753343,1747759833777,-430.0,0.00017808,2]
[361753344,1747759833787,-633.91,0.00017808,2]
[361753345,1747759833796,-430.0,0.00017808,2]
[361753346,1747759833807,-452.11,0.00017808,2]
[361753347,1747759833817,-430.0,0.00017808,2]
[361753348,1747759833828,-211.74,0.00017808,2]
[361753349,1747759833838,-430.0,0.00017808,2]
[361753350,1747759833847,-500.0,0.00017821,2]
[361753351,1747759833858,-1477.87550295,0.00017831,2]
[361753352,1747759833868,-422.65292303,0.00017919,2]
[361753353,1747759833879,-500.0,0.0001794,2]
[361753354,1747759833890,-2000.0,0.00018,2]
[361753355,1747759833900,-38098.37220328,0.00018,2]
[361753356,1747759833910,-500.0,0.00018024,2]
[361753357,1747759833920,-500.0,0.00018024,2]
[361753358,1747759833930,-914.91,0.00018082,2]
[361753359,1747759833940,-430.0,0.00018082,2]
[361753360,1747759833951,-1334.72,0.00018082,2]
[361753361,1747759833963,-533.26,0.00018082,2]
[361753362,1747759833977,-430.0,0.00018082,2]
[361753363,1747759833987,-430.0,0.00018082,2]
[361753364,1747759833997,-393.75,0.00018082,2]
[361753365,1747759834007,-430.0,0.00018082,2]
[361753366,1747759834018,-633.91,0.00018082,2]
[361753367,1747759834033,-430.0,0.00018082,2]
[361753368,1747759834047,-452.11,0.00018082,2]
[361753369,1747759834058,-296.27439242,0.00018082,2]
[361753370,1747759834069,-368.66,0.00018082,2]
[361753371,1747759834080,-1477.87550295,0.00018141,2]
[361753372,1747759834090,-914.91,0.00018356,2]
[361753373,1747759834101,-430.0,0.00018356,2]
[361753374,1747759834111,-1334.72,0.00018356,2]
[361753375,1747759834122,-533.26,0.00018356,2]
[361753376,1747759834134,-430.0,0.00018356,2]
[361753377,1747759834144,-430.0,0.00018356,2]
[361753378,1747759834155,-355.75,0.00018356,2]
[361753379,1747759834165,-633.91,0.00018356,2]
[361753380,1747759834175,-430.0,0.00018356,2]
[361753381,1747759834185,-452.11,0.00018356,2]
[361753382,1747759834195,-404.0,0.00018383,2]
[361753383,1747759834205,-1477.87550295,0.00018452,2]
[361753384,1747759834215,-587.0,0.00018577,2]
[361753385,1747759834225,-587.0,0.00018577,2]
[361753386,1747759834235,-914.91,0.0001863,2]
[361753387,1747759834245,-430.0,0.0001863,2]
[361753388,1747759834255,-1334.72,0.0001863,2]
[361753389,1747759834265,-533.26,0.0001863,2]
[361753390,1747759834275,-213.39,0.0001863,2]
[361753391,1747759834285,-430.0,0.0001863,2]
[361753392,1747759834295,-633.91,0.0001863,2]
[361753393,1747759834305,-430.0,0.0001863,2]
[361753394,1747759834316,-452.11,0.0001863,2]
[361753395,1747759834325,-1477.87550295,0.00018762,2]
[361753396,1747759834335,-914.91,0.00018904,2]
[361753397,1747759834345,-430.0,0.00018904,2]
[361753398,1747759834355,-1334.72,0.00018904,2]
[361753399,1747759834364,-533.26,0.00018904,2]
[361753400,1747759834375,-484.6791883,0.00018904,2]
[361753401,1747759834386,-633.91,0.00018904,2]
[361753402,1747759834400,-430.0,0.00018904,2]
[361753403,1747759834410,-452.11,0.00018904,2]
[361753404,1747759834419,-169.24670106,0.00018975,2]
[361753405,1747759834429,-500.0,0.00018999,2]
[361753406,1747759834439,-500.0,0.00018999,2]
[361753407,1747759834449,-500.0,0.00018999,2]
[361753408,1747759834458,-500.0,0.00018999,2]
[361753409,1747759834468,-500.0,0.00018999,2]
[361753410,1747759834477,-238.75155704,0.00018999,2]
[361753411,1747759834488,-230.03275811,0.00018999,2]
[361753412,1747759834497,-481.96092097,0.00018999,2]
[361753413,1747759834507,-500.0,0.00018999,2]
[361753414,1747759834517,-500.0,0.00018999,2]
[361753415,1747759834527,-500.0,0.00018999,2]
[361753416,1747759834537,-500.0,0.00018999,2]
[361753417,1747759834547,-500.0,0.00018999,2]
[361753418,1747759834557,-500.0,0.00018999,2]
[361753419,1747759834567,-500.0,0.00018999,2]
[361753420,1747759834577,-500.0,0.00018999,2]
[361753421,1747759834586,-2000.0,0.00019,2]
[361753422,1747759834596,-20000.0,0.00019,7]
[361753423,1747759834605,-5000.0,0.00019026,2]
[361753424,1747759834615,-1477.87550295,0.00019072,2]
[361753425,1747759834626,-914.91,0.00019178,2]
[361753426,1747759834635,-430.0,0.00019178,2]
[361753427,1747759834645,-1334.72,0.00019178,2]
[361753428,1747759834654,-533.26,0.00019178,2]
[361753429,1747759834664,-633.91,0.00019178,2]
[361753430,1747759834674,-430.0,0.00019178,2]
[361753431,1747759834685,-452.11,0.00019178,2]
[361753432,1747759834695,-155.0,0.00019178,2]
[361753433,1747759834705,-423.352459,0.00019178,2]
[361753434,1747759834715,-500.0,0.00019267,2]
[361753435,1747759834725,-1477.87550295,0.00019383,2]
[361753436,1747759834735,-914.91,0.00019452,2]
[361753437,1747759834744,-430.0,0.00019452,2]
[361753438,1747759834753,-1334.72,0.00019452,2]
[361753439,1747759834764,-533.26,0.00019452,2]
[361753440,1747759834773,-633.91,0.00019452,2]
[361753441,1747759834782,-430.0,0.00019452,2]
[361753442,1747759834792,-452.11,0.00019452,2]
[361753443,1747759834802,-1477.87550295,0.00019693,2]
[361753444,1747759834811,-151.0,0.00019726,2]
[361753445,1747759834821,-151.0,0.00019726,2]
[361753446,1747759834831,-168.507938,0.00019726,2]
[361753447,1747759834841,-151.0,0.00019726,2]
[361753448,1747759834850,-151.0,0.00019726,2]
[361753449,1747759834860,-151.0,0.00019726,2]
[361753450,1747759834870,-219.72713,0.00019726,2]
[361753451,1747759834881,-151.0,0.00019726,2]
[361753452,1747759834891,-219.72713,0.00019726,2]
[361753453,1747759834901,-151.0,0.00019726,2]
[361753454,1747759835120,-151.0,0.00019726,2]
[361753455,1747759835132,-914.91,0.00019726,2]
[361753456,1747759835141,-430.0,0.00019726,2]
[361753457,1747759835152,-1334.72,0.00019726,2]
[361753458,1747759835161,-533.26,0.00019726,2]
[361753459,1747759835170,-633.91,0.00019726,2]
[361753460,1747759835180,-430.0,0.00019726,2]
[361753461,1747759835190,-452.11,0.00019726,2]
[361753462,1747759835199,-151.0,0.00019726,2]
[361753463,1747759835208,-268.1735464,0.00019815,2]
[361753464,1747759835218,-2264.21,0.0002,2]
[361753465,1747759835227,-1000.0,0.0002,2]
[361753466,1747759835237,-151.0,0.0002,2]
[361753467,1747759835247,-151.0,0.0002,2]
[361753468,1747759835256,-151.0,0.0002,2]
[361753469,1747759835266,-312.121464,0.0002,2]
[361753470,1747759835275,-312.121464,0.0002,2]
[361753471,1747759835285,-914.91,0.0002,2]
[361753472,1747759835295,-158.551293,0.0002,2]
[361753473,1747759835304,-464.78992102,0.0002,2]
[361753474,1747759835314,-1334.72,0.0002,2]
[361753475,1747759835323,-533.26,0.0002,2]
[361753476,1747759835332,-151.0,0.0002,2]
[361753477,1747759835343,-633.91,0.0002,2]
[361753478,1747759835352,-430.0,0.0002,2]
[361753479,1747759835361,-452.11,0.0002,2]
[361753480,1747759835370,-151.0,0.0002,2]
[361753481,1747759835380,-151.0,0.0002,2]
[361753482,1747759835390,-151.0,0.0002,2]
[361753483,1747759835399,-157.9,0.0002,2]
[361753484,1747759835408,-1477.87550295,0.00020003,2]
[361753485,1747759835418,-262.671991,0.00020187,2]
[361753486,1747759835427,-571.57,0.000202,14]
[361753487,1747759835437,-914.91,0.00020273,2]
[361753488,1747759835446,-1334.72,0.00020273,2]
[361753489,1747759835455,-533.26,0.00020273,2]
[361753490,1747759835465,-633.91,0.00020273,2]
[361753491,1747759835474,-430.0,0.00020273,2]
[361753492,1747759835483,-452.11,0.00020273,2]
[361753493,1747759835493,-1477.87550295,0.00020314,3]
[361753494,1747759835502,-823.0,0.00020321,2]
[361753495,1747759835510,-823.0,0.00020321,2]
[361753496,1747759835520,-1300.0,0.00020445,2]
[361753497,1747759835529,-151.0,0.0002053,2]
[361753498,1747759835538,-207.4,0.0002053,2]
[361753499,1747759835547,-914.91,0.00020547,2]
[361753500,1747759835556,-1334.72,0.00020547,2]
[361753501,1747759835566,-533.26,0.00020547,2]
[361753502,1747759835576,-633.91,0.00020547,2]
[361753503,1747759835585,-430.0,0.00020547,2]
[361753504,1747759835594,-452.11,0.00020547,2]
[361753505,1747759835604,-517.762,0.00020586,2]
[361753506,1747759835613,-178.555,0.00020586,2]
[361753507,1747759835623,-1477.87550295,0.00020624,3]
[361753508,1747759835633,-571.57,0.000207,14]
[361753509,1747759835642,-169.24670106,0.00020789,2]
[361753510,1747759835652,-500.0,0.00020807,2]
[361753511,1747759835662,-500.0,0.00020807,2]
[361753512,1747759835671,-914.91,0.00020821,2]
[361753513,1747759835681,-1334.72,0.00020821,2]
[361753514,1747759835690,-533.26,0.00020821,2]
[361753515,1747759835700,-633.91,0.00020821,2]
[361753516,1747759835709,-371.52719358,0.00020821,2]
[361753517,1747759835719,-452.11,0.00020821,2]
[361753518,1747759835728,-1477.87550295,0.00020934,4]
[361753519,1747759835737,-500.0,0.00020953,2]
[361753520,1747759835746,-600.0,0.00020953,2]
[361753521,1747759835756,-3000.0,0.00021,2]
[361753522,1747759835765,-3000.0,0.0002101,2]
[361753523,1747759835774,-3000.0,0.0002102,2]
[361753524,1747759835783,-5000.0,0.00021026,2]
[361753525,1747759835793,-334.79615347,0.0002103,2]
[361753566,1747759837987,-500.0,0.00016979,2]
[361753568,1747759837997,-500.0,0.00016979,2]
[361753570,1747759838007,-328.29331157,0.00016979,2]
[361753572,1747759838016,-500.0,0.00016979,2]
[361753574,1747759838027,-500.0,0.00016979,2]
[361753576,1747759838040,-500.0,0.00016979,2]
[361753577,1747759838050,-500.0,0.00016979,2]
[361753579,1747759838061,-500.0,0.00016979,2]
[361753580,1747759838071,-70.20174333,0.00016979,2]
[361753582,1747759838083,-429.79825667,0.00016979,2]
[361753583,1747759838092,-211.46472849,0.00016979,2]
[361753585,1747759838102,-500.0,0.00016979,2]
[361753586,1747759838113,-500.0,0.00016979,2]
[361753588,1747759838123,-407.90091761,0.00016979,2]
[361753589,1747759838133,-451.66353213,0.00016979,2]
[361753645,1747759840246,-48.33646787,0.00016979,2]
[361753646,1747759840258,-500.0,0.00016979,2]
[361753647,1747759840268,-500.0,0.00016979,2]
[361753648,1747759840277,-381.27539239,0.00016979,2]
[361753649,1747759840287,-575.80266481,0.00016979,2]
[361753650,1747759840297,-500.0,0.00016979,2]
[361753651,1747759840307,-500.0,0.00016979,2]
[361753652,1747759840316,-500.0,0.00016979,2]
[361753653,1747759840325,-500.0,0.00016979,2]
[361753654,1747759840334,-500.0,0.00016979,2]
[361753655,1747759840344,-500.0,0.00016979,2]
[361753656,1747759840354,-136.98547493,0.00016979,2]
[361753657,1747759840366,-363.01452507,0.00016979,2]
[361753658,1747759840375,-500.0,0.00016979,2]
[361753659,1747759840386,-212.38718278,0.00017591,2]
[361753660,1747759840395,-9457.52103755,0.00019452,2]
[361753661,1747759840406,-772.79413623,0.00019452,2]
[361753662,1747759840417,-493.28256153,0.00019452,2]
[361753696,1747759843214,-1834.29756661,0.00019452,2]
[361753701,1747759843318,-21486.64354827,0.00019452,2]
[361753919,1747759846203,-670.79689604,0.00019258,2]
[361754348,1747760098663,-4742.0,0.00013562,2]
[361754349,1747760167167,-258.0,0.00013562,2]
[361754350,1747760172515,3500.0,0.00027397,120]
[361754351,1747760178831,42.0,0.00013699,2]
[361754352,1747760231554,-2306.0,0.00013699,2]
[361754353,1747760616650,-1465.88440171,0.00013562,2]
[361754354,1747760635590,5007.3,0.00027397,120]
[361754361,1747761032201,-236.404791,0.00013699,2]
[361754362,1747761032216,-428.9424626,0.00015455,2]
[361754363,1747761032226,-712.7089321,0.00015455,2]
[361754364,1747761032237,-202.54593322,0.00015945,2]
[361754365,1747761032247,-300.0,0.00016,2]
[361754366,1747761032257,-79.39788108,0.00016338,2]
[361754367,1747761032272,-171.87566788,0.00016338,2]
[361754368,1747761032281,-1200.0,0.00016436,2]
[361754369,1747761032291,-193.0,0.00016436,2]
[361754370,1747761032300,-300.0,0.00016436,2]
[361754371,1747761032310,-300.0,0.00016436,2]
[361754373,1747761032319,-500.0,0.00016437,2]
[361754374,1747761032329,-500.0,0.00016437,2]
[361754375,1747761032339,-500.0,0.00016437,2]
[361754376,1747761032348,-500.0,0.00016437,2]
[361754377,1747761032358,-500.0,0.00016437,2]
[361754378,1747761032367,-500.0,0.00016437,2]
[361754379,1747761032377,-500.0,0.00016437,2]
[361754380,1747761032387,-500.0,0.00016437,2]
[361754381,1747761032397,-341.75585164,0.00016437,2]
[361754382,1747761032408,-500.0,0.00016437,2]
[361754383,1747761032417,-500.0,0.00016437,2]
[361754384,1747761032427,-500.0,0.00016437,2]
[361754385,1747761032438,-464.02492473,0.00016437,2]
[361754386,1747761032448,-500.0,0.00016437,2]
[361754387,1747761032458,-500.0,0.00016437,2]
[361754388,1747761032468,-500.0,0.00016437,2]
[361754389,1747761032478,-171.9719441,0.00016437,2]
[361754390,1747761032488,-500.0,0.00016437,2]
[361754391,1747761032497,-500.0,0.00016437,2]
[361754392,1747761032507,-500.0,0.00016437,2]
[361754393,1747761032520,-500.0,0.00016437,2]
[361754394,1747761032530,-500.0,0.00016437,2]
[361754395,1747761032539,-500.0,0.00016437,2]
[361754396,1747761032549,-500.0,0.00016437,2]
[361754397,1747761032560,-500.0,0.00016437,2]
[361754398,1747761032569,-286.07585451,0.00016438,2]
[361754399,1747761032579,-301.64629966,0.00016438,2]
[361754400,1747761032589,-450.0,0.00016438,2]
[361754401,1747761032598,-301.28792562,0.00016438,2]
[361754402,1747761032608,-250.0,0.00016438,2]
[361754403,1747761032617,-351.3855859,0.00016438,2]
[361754404,1747761032627,-450.0,0.00016438,2]
[361754405,1747761032636,-245.74391925,0.00016438,2]
[361754406,1747761032646,-200.0,0.00016438,2]
[361754407,1747761032656,-450.0,0.00016438,2]
[361754408,1747761032666,-401.43858407,0.00016438,2]
[361754409,1747761032675,-450.0,0.00016438,2]
[361754410,1747761032684,-200.97609521,0.00016438,2]
[361754411,1747761032694,-450.0,0.00016438,2]
[361754412,1747761032704,-300.0,0.00016438,2]
[361754413,1747761032714,-450.0,0.00016438,2]
[361754414,1747761032724,-307.98520341,0.00016438,2]
[361754415,1747761032734,-310.4241333,0.00016438,2]
[361754416,1747761032743,-450.0,0.00016438,2]
[361754417,1747761032752,-300.0,0.00016438,2]
[361754418,1747761032765,-450.0,0.00016438,2]
[361754419,1747761032774,-450.0,0.00016438,2]
[361754420,1747761032784,-300.0,0.00016438,2]
[361754421,1747761032794,-300.0,0.00016438,2]
[361754422,1747761032803,-555.24912084,0.00016438,2]
[361754423,1747761032812,-300.0,0.00016438,2]
[361754424,1747761032822,-300.0,0.00016438,2]
[361754425,1747761032831,-450.0,0.00016438,2]
[361754426,1747761032841,-436.36259232,0.00016438,2]
[361754427,1747761032853,-116.10672297,0.00016438,2]
[361754484,1747761040308,-300.0,0.00016437,2]
[361754485,1747761040318,-333.89327703,0.00016438,2]
[361754486,1747761040328,-300.0,0.00016438,2]
[361754487,1747761040337,-450.0,0.00016438,2]
[361754488,1747761040347,-450.0,0.00016438,2]
[361754489,1747761040357,-450.0,0.00016438,2]
[361754490,1747761040367,-450.0,0.00016438,2]
[361754491,1747761040378,-300.0,0.00016438,2]
[361754492,1747761040388,-251.64122963,0.00016438,2]
[361754493,1747761040399,-450.0,0.00016438,2]
[361754494,1747761040413,-450.0,0.00016438,2]
[361754495,1747761040422,-283.80969503,0.00016438,2]
[361754496,1747761040432,-450.0,0.00016438,2]
[361754497,1747761040442,-450.0,0.00016438,2]
[361754498,1747761040453,-500.0,0.00016438,2]
[361754499,1747761040464,-450.0,0.00016438,2]
[361754500,1747761040475,-250.0,0.00016438,2]
[361754501,1747761040485,-522.93,0.00016438,2]
[361754502,1747761040495,-500.0,0.00016438,2]
[361754503,1747761040506,-450.0,0.00016438,2]
[361754504,1747761040519,-450.0,0.00016438,2]
[361754505,1747761040529,-450.0,0.00016438,2]
[361754506,1747761040539,-450.0,0.00016438,2]
[361754507,1747761040549,-250.0,0.00016438,2]
[361754508,1747761040559,-526.57333338,0.00016438,2]
[361754509,1747761040569,-450.0,0.00016438,2]
[361754510,1747761040578,-452.41372131,0.00016438,2]
[361754511,1747761040587,-450.0,0.00016438,2]
[361754512,1747761040597,-450.0,0.00016438,2]
[361754513,1747761040606,-450.0,0.00016438,2]
[361754514,1747761040615,-450.0,0.00016438,2]
[361754515,1747761040625,-450.0,0.00016438,2]
[361754516,1747761040635,-576.35867665,0.00016438,2]
[361754517,1747761040645,-450.0,0.00016438,2]
[361754518,1747761040654,-450.0,0.00016438,2]
[361754519,1747761040665,-450.0,0.00016438,2]
[361754520,1747761040674,-450.0,0.00016438,2]
[361754521,1747761040684,-250.0,0.00016438,2]
[361754522,1747761040694,-501.44848117,0.00016438,2]
[361754523,1747761040703,-450.0,0.00016438,2]
[361754524,1747761040713,-450.0,0.00016438,2]
[361754525,1747761040723,-450.0,0.00016438,2]
[361754526,1747761040732,-450.0,0.00016438,2]
[361754527,1747761040742,-450.0,0.00016438,2]
[361754528,1747761040752,-413.96553235,0.00016438,2]
[361754529,1747761040762,-452.07949899,0.00016438,2]
[361754530,1747761040772,-450.0,0.00016438,2]
[361754531,1747761040782,-491.08677894,0.00016438,2]
[361754532,1747761040791,-234.58782354,0.00016438,2]
[361754533,1747761040801,-450.0,0.00016438,2]
[361754534,1747761040811,-450.0,0.00016438,2]
[361754535,1747761040821,-450.0,0.00016438,2]
[361754536,1747761040830,-450.0,0.00016438,2]
[361754537,1747761040841,-450.0,0.00016438,2]
[361754538,1747761040851,-450.0,0.00016438,2]
[361754539,1747761040862,-450.0,0.00016438,2]
[361754540,1747761040872,-450.0,0.00016438,2]
[361754541,1747761040882,-450.0,0.00016438,2]
[361754542,1747761040892,-450.0,0.00016438,2]
[361754543,1747761040902,-450.0,0.00016438,2]
[361754544,1747761040911,-450.0,0.00016438,2]
[361754545,1747761040921,-450.0,0.00016438,2]
[361754546,1747761040931,-450.0,0.00016438,2]
[361754547,1747761040941,-450.0,0.00016438,2]
[361754548,1747761040951,-450.0,0.00016438,2]
[361754549,1747761040960,-450.0,0.00016438,2]
[361754550,1747761040970,-450.0,0.00016438,2]
[361754551,1747761040979,-450.0,0.00016438,2]
[361754552,1747761040989,-450.0,0.00016438,2]
[361754553,1747761040999,-450.0,0.00016438,2]
[361754554,1747761041010,-250.0,0.00016438,2]
[361754555,1747761041021,-450.0,0.00016438,2]
[361754556,1747761041031,-450.0,0.00016438,2]
[361754557,1747761041041,-250.0,0.00016438,2]
[361754558,1747761041050,-450.0,0.00016438,2]
[361754559,1747761041061,-450.0,0.00016438,2]
[361754560,1747761041070,-450.0,0.00016438,2]
[361754561,1747761041080,-450.0,0.00016438,2]
[361754562,1747761041089,-450.0,0.00016438,2]
[361754563,1747761041099,-450.0,0.00016438,2]
[361754564,1747761041109,-450.0,0.00016438,2]
[361754565,1747761041119,-469.27666489,0.00016438,2]
[361754566,1747761041128,-450.0,0.00016438,2]
[361754567,1747761041137,-450.0,0.00016438,2]
[361754568,1747761041147,-450.0,0.00016438,2]
[361754569,1747761041156,-450.0,0.00016438,2]
[361754570,1747761041165,-450.0,0.00016438,2]
[361754571,1747761041175,-450.0,0.00016438,2]
[361754572,1747761041186,-450.0,0.00016438,2]
[361754573,1747761041195,-450.0,0.00016438,2]
[361754574,1747761041204,-450.0,0.00016438,2]
[361754575,1747761041214,-450.66827011,0.00016438,2]
[361754576,1747761041223,-450.0,0.00016438,2]
[361754577,1747761041234,-450.0,0.00016438,2]
[361754578,1747761041243,-250.0,0.00016438,2]
[361754579,1747761041252,-250.0,0.00016438,2]
[361754580,1747761041261,-450.0,0.00016438,2]
[361754581,1747761041272,-536.93,0.00016438,2]
[361754582,1747761041281,-450.0,0.00016438,2]
[361754583,1747761041291,-450.0,0.00016438,2]